Cogmind - Beta 10.2 @@@ ROGUE MODE // 2020.11.17 @ 21:12:40 // Halloween2020/ForbiddenLore Player: ptdel Result: Destroyed by I1-FTL(z) with Makeshift Spear Performance ------------- Evolutions (4) 2000 Regions Visited (11) 2200 Robots Destroyed (163) 815 Value Destroyed (5080) 5080 Prototype IDs (5) 100 Alien Tech Used (0) 0 Bonus (514) 514 TOTAL SCORE: 10709 Bonus ------- High Alert Combat Kills 241 Follower Combat Kills 120 Aligned with FarCom 300 Met Imprinter 300 Friendly Fire -447 Cogmind --------- Core Integrity 0/850 Matter 300/300 Energy 68/290 System Corruption 6% Temperature Cool (0) Movement Core (1300) Ox25 Location -6/Zion Parts ------- > --- POWER (2) -------- Improved Deuterium Engine > --- PROPULSION (5) --- (None) > --- UTILITY (6) ------ Large Storage Unit Large Storage Unit High-capacity Storage Unit > --- WEAPON (2) ------- Phasing Sabre > --- INVENTORY (24) --- Improved Deuterium Engine Makeshift Power Source Makeshift Power Source Fission Core Light Fission Core Light Fission Core VTOL Module VTOL Module VTOL Module VTOL Module Makeshift Flight Unit Makeshift Flight Unit Nuclear Pulse Thruster Thermal Converter Improved Heat Sink Advanced Heat Sink Transmission Jammer Hardened Heavy Armor Plating Tractor Beam Greatsword Power Sword Peak State ------------ > --- POWER ------------ Cooled Deuterium Engine Angular Momentum Engine > --- PROPULSION ------- Light Treads Armored Treads Armored Treads Medium Treads Improved Medium Treads > --- UTILITY ---------- Improved Cooling System Large Storage Unit Large Storage Unit High-capacity Storage Unit Heavy Armor Plating > --- WEAPON ----------- Improved Proton Missile Launcher Power Sword > --- INVENTORY -------- Improved Deuterium Engine Light Fission Core VTOL Module VTOL Module VTOL Module VTOL Module Makeshift Flight Unit Nuclear Pulse Thruster Improved Heat Sink Advanced Heat Sink Transmission Jammer Medium Insulated Plating Medium Insulated Plating Medium Insulated Plating Drone Bay Proton Cannon Battle Cannon Mini Grenade Launcher Precision Rocket Launcher Greatsword Power Sword [Rating: 57] Favorites ----------- Power Ion Engine Engine Ion Engine Power Core Fission Core Propulsion Improved Treads Treads Improved Treads Utility Large Storage Unit Device Improved Cooling System Storage Large Storage Unit Protection Medium Armor Plating Weapon Mini Grenade Launcher Energy Gun Particle Gun Energy Cannon Particle Cannon Ballistic Gun Light Assault Rifle Launcher Mini Grenade Launcher Slashing Weapon Power Sword Build | -11 -10 -10 -10 -9 -8 -8 -7 -6 -6 -6 -6 ------- Run | Scr Mat Min Exi Min Mat Sto Fac Fac Low Low Zio Slots Evolved 8 | . . . . . 4 . 2 2 . . . Power 1 | . . . . . . . 1 . . . . Propulsion 3 | . . . . . 2 . . 1 . . . Utility 4 | . . . . . 2 . 1 1 . . . Weapon . | . . . . . . . . . . . . Parts Attached 97 | 6 13 1 1 1 9 10 16 25 9 3 3 Power 13 | 1 1 . . . 2 . 2 4 2 . 1 Engine 11 | 1 1 . . . 2 . 2 2 2 . 1 Core 2 | . . . . . . . . 2 . . . Reactor . | . . . . . . . . . . . . Propulsion 26 | 2 3 . . . 3 2 6 6 4 . . Treads 26 | 2 3 . . . 3 2 6 6 4 . . Leg . | . . . . . . . . . . . . Wheel . | . . . . . . . . . . . . Hover . | . . . . . . . . . . . . Flight . | . . . . . . . . . . . . Utility 32 | 1 5 . 1 . 1 6 6 9 1 2 . Device 11 | . . . . . . 4 2 5 . . . Storage 10 | 1 5 . 1 . . . . 3 . . . Processor . | . . . . . . . . . . . . Hackware . | . . . . . . . . . . . . Protection 11 | . . . . . 1 2 4 1 1 2 . Artifact . | . . . . . . . . . . . . Weapon 26 | 2 4 1 . 1 3 2 2 6 2 1 2 Energy Gun 2 | 1 . . . . . 1 . . . . . Energy Cannon 4 | . . 1 . . . . . 2 . . 1 Ballistic Gun 6 | 1 3 . . . 1 . . 1 . . . Ballistic Cannon . | . . . . . . . . . . . . Launcher 10 | . 1 . . 1 2 1 2 1 1 1 . Special Weapon . | . . . . . . . . . . . . Impact Weapon . | . . . . . . . . . . . . Slashing Weapon 4 | . . . . . . . . 2 1 . 1 Piercing Weapon . | . . . . . . . . . . . . Special Melee Weapon . | . . . . . . . . . . . . Unidentified Prototypes 3 | . . . . . 1 . 1 . 1 . . Parts Lost 43 | . 1 1 . . . 2 4 17 5 3 10 Power 8 | . . . . . . . . 4 2 . 2 Propulsion 16 | . . . . . . 1 2 7 2 2 2 Utility 13 | . . . . . . 1 2 5 1 1 3 Weapon 6 | . 1 1 . . . . . 1 . . 3 Highest Loss Streak 6 | . 1 1 . . . 1 2 6 2 3 4 Average Slot Usage (%) 83 | . 97 100 98 85 74 85 91 73 84 85 71 Engine 10 | . 14 14 14 14 8 9 15 6 7 13 12 Core 1 | . . . . . . . . 4 1 . . Treads 25 | . 28 28 28 28 31 35 29 20 27 24 9 Device 4 | . . . . . . 1 . 8 9 6 4 Storage 15 | . 25 28 26 14 9 9 6 10 20 20 20 Protection 8 | . . . . . 7 11 23 7 4 7 11 Energy Cannon 1 | . . 14 14 14 6 . . 1 . . . Ballistic Gun 4 | . 25 14 14 11 4 . . 1 . . . Launcher 7 | . . . . 2 6 14 14 5 6 6 9 Slashing Weapon 2 | . . . . . . . . 3 5 5 1 Naked Turns . | . . . . . . . . . . . . Heaviest Build 120 | 13 39 42 90 93 108 104 117 97 116 120 120 Greatest Support 126 | 40 46 46 46 46 92 92 92 117 126 90 50 Greatest Overweight (x) 32 | . . . 1 2 1 1 2 3 1 2 32 Average Overweight (x) . | . . . . 1 1 . . . . 1 2 Largest Inventory Capacity 24 | 6 16 16 24 24 24 24 24 24 24 24 24 Average Capacity 19 | 5 11 16 16 24 24 24 23 15 24 24 24 Most Carried 24 | 4 16 16 16 16 24 24 24 22 24 24 24 Average Carried 17 | 2 9 15 15 15 18 22 22 8 22 23 23 Final Capacity 24 | 6 16 16 24 24 24 24 4 24 24 24 24 Final Carried 24 | 2 16 15 15 16 24 24 2 22 24 22 23 Class Distribution -------------------- 64% | Hauler-Mutant 35% | Mutant Dominant Class ---------------- Mutant | -10/Materials Mutant | -10/Mines Mutant | -10/Exiles Hauler-Mutant | -9/Mines Hauler-Mutant | -8/Materials Hauler-Mutant | -8/Storage Hauler-Mutant | -7/Factory Mutant | -6/Factory Hauler-Mutant | -6/Lower Caves Hauler-Mutant | -6/Lower Caves Hauler-Mutant | -6/Zion Resources | -11 -10 -10 -10 -9 -8 -8 -7 -6 -6 -6 -6 ----------- Run | Scr Mat Min Exi Min Mat Sto Fac Fac Low Low Zio Matter Collected 3487 | 171 382 14 . 12 140 837 314 784 501 140 192 Remotely . | . . . . . . . . . . . . Salvage Created 4851 | . 469 95 . 52 293 1294 408 973 375 338 554 Parts 258 | . 36 2 . 1 31 46 33 51 13 10 35 Haulers Intercepted 5 | . 2 . . . . 2 1 . . . . Recyclers Shooed 3 | . 1 . . . . 2 . . . . . Parts Field Recycled . | . . . . . . . . . . . . Retrieved Matter . | . . . . . . . . . . . . Parts Self-Destructed 12 | . . . . . . . . . 11 1 . Prevented 10 | . . . . . . . . . 2 8 . Kills | -11 -10 -10 -10 -9 -8 -8 -7 -6 -6 -6 -6 ------- Run | Scr Mat Min Exi Min Mat Sto Fac Fac Low Low Zio Combat Hostiles Destroyed 98 | . 11 2 . 1 10 27 10 17 11 5 4 Melee 13 | . . . . . . . 1 12 . . . Guns 9 | . 7 1 . . 1 . . . . . . Cannons 3 | . . . . 1 2 . . . . . . AOE 69 | . 4 1 . . 7 27 9 5 10 2 4 Classes Destroyed 18 | . 5 . . . 4 4 2 . . . 3 Worker 12 | . . . . . . 5 3 4 . . . Builder 10 | . . . . . 6 . 3 1 . . . Hauler 5 | . 2 . . . . 2 1 . . . . Recycler 10 | . . . . . . 5 3 2 . . . Mechanic 2 | . . . . . 1 1 . . . . . Operator 2 | . 1 . . . . 1 . . . . . Drone 2 | . . . . . . 2 . . . . . Watcher 6 | . 3 . . . . 1 2 . . . . Swarmer 20 | . 5 . . . . . 6 4 5 . . Grunt 51 | . 6 2 . 1 8 20 1 3 6 4 . Brawler 1 | . . . . . 1 . . . . . . Duelist 4 | . . . . . . 4 . . . . . Sentry 6 | . . . . . 1 3 . 2 . . . Hunter 5 | . . . . . . . 1 4 . . . Programmer 7 | . . . . . . . 2 4 . 1 . Zionite 17 | . . . . . . . . . . . 17 Tinkerer 3 | . . . . . . . . . . . 3 Thug 1 | . . . . . . 1 . . . . . Mutant 4 | . . . . . . . . . . . 4 Best Kill Streak 13 | . 3 2 . 1 13 11 8 6 3 4 6 Combat Bots Only 7 | . 3 2 . 1 6 7 4 4 3 4 4 Max Kills in Single Turn 6 | . 2 1 . 1 6 6 5 1 2 2 2 Gunslinging . | . . . . . . . . . . . . Exploded 5 | . 2 1 . . 2 5 3 1 2 1 2 Melee 1 | . . . . . . . 1 1 . . . Uniques/NPCs Destroyed . | . . . . . . . . . . . . Combat | -11 -10 -10 -10 -9 -8 -8 -7 -6 -6 -6 -6 -------- Run | Scr Mat Min Exi Min Mat Sto Fac Fac Low Low Zio Damage Taken 9287 | . 429 155 . 14 577 837 1145 2770 1177 292 1891 Core 1046 | . 16 38 . . 14 42 84 506 62 15 269 Absorbed by Shields . | . . . . . . . . . . . . Core Remaining (%) 88 | 100 . . . 78 . 89 88 . . . . Volleys Fired 251 | . 45 6 . 8 29 47 20 37 20 17 22 Largest 2 | . 2 2 . 2 2 2 2 2 2 2 2 Hottest 105 | . 60 88 . 88 93 65 73 105 73 86 86 Shots Fired 386 | . 90 12 . 10 49 76 34 43 28 19 25 Gun 132 | . 87 8 . 2 17 18 . . . . . Cannon 63 | . . 4 . 8 10 . . 24 . . 17 Launcher 191 | . 3 . . . 22 58 34 19 28 19 8 Special . | . . . . . . . . . . . . Kinetic 105 | . 78 8 . 2 17 . . . . . . Thermal 40 | . . 4 . 8 10 18 . . . . . Explosive 157 | . 3 . . . 22 58 34 19 14 1 6 Electromagnetic 84 | . 9 . . . . . . 24 14 18 19 Robot Hit Streak 25 | . 14 15 . 1 10 14 20 25 15 7 12 Robot Miss Streak 5 | . 5 2 . 3 2 2 . 4 2 1 1 Penetration Max . | . . . . . . . . . . . . Secondary Targets 1 | . . 1 . . . . . . . . . Max Gunslinging Chain 1 | . . 1 . . . . . . . . . Shots Hit Robots 302 | . 61 9 . 1 31 40 17 63 24 14 42 Core Hits 294 | . 30 4 . 1 34 88 31 43 24 7 32 Critical Hits 3 | . . . . . . . . . . . 3 Critical Kills 2 | . . . . . . . . . . . 2 Critical Parts Destroyed 1 | . . . . . . . . . . . 1 Melee Attacks 80 | . . . . . . . . 44 8 . 28 Impact . | . . . . . . . . . . . . Slashing 80 | . . . . . . . . 44 8 . 28 Piercing . | . . . . . . . . . . . . Sneak Attacks 3 | . . . . . . . . 1 1 . 1 Combat Hostiles . | . . . . . . . . . . . . Follow-up Attacks . | . . . . . . . . . . . . Damage Inflicted 16056 | . 816 130 . 31 1638 4096 1742 2870 1613 508 2612 Guns 1137 | . 594 48 . 10 240 245 . . . . . Cannons 882 | . . 41 . 21 144 . . 266 . . 410 Explosions 11272 | . 219 41 . . 1254 3850 1719 1217 1242 508 1222 Melee 2699 | . . . . . . . . 1348 371 . 980 Ramming 66 | . 3 . . . . 1 23 39 . . . Kinetic 785 | . 487 48 . 10 240 . . . . . . Thermal 552 | . 60 82 . 21 144 245 . . . . . Explosive 10205 | . 159 . . . 1254 3850 1719 1217 877 43 1086 Electromagnetic 1749 | . 107 . . . . . . 266 365 465 546 Impact . | . . . . . . . . . . . . Slashing 2699 | . . . . . . . . 1348 371 . 980 Piercing . | . . . . . . . . . . . . Highest Corruption 11 | . . . . . 1 1 1 11 11 11 11 Average Corruption 6 | . . . . . 1 1 1 6 11 11 5 Corruption Purged . | . . . . . . . . . . . . Effects 274 | . . . . . 5 5 . 75 119 52 18 Message Errors 59 | . . . . . . 2 . 17 23 15 2 Matter Fused 49 | . . . . . . . . 18 20 8 3 Heat Flow Errors 20 | . . . . . . . . 6 7 6 1 Energy Discharges 39 | . . . . . 1 2 . 18 9 6 3 Data Loss (minor) 38 | . . . . . 2 . . 8 18 8 2 Data Loss (major) 11 | . . . . . . . . . 8 3 . Misfires 9 | . . . . . . . . 1 5 1 2 Alerts 4 | . . . . . . . . . 3 1 . Misdirections 21 | . . . . . . . . . 16 3 2 Targeting Errors 21 | . . . . . 1 1 . 7 9 . 3 Weapon Failures 3 | . . . . . 1 . . . 1 1 . Overload Shots . | . . . . . . . . . . . . Overflow Damage 514 | . 8 . . . 33 88 24 134 141 . 86 Projectiles 2 | . . . . . . . . . . . 2 Explosions 284 | . 8 . . . 33 88 24 13 39 . 79 Melee 228 | . . . . . . . . 121 102 . 5 Knockbacks 1 | . . . . . . . . 1 . . . Impact 1 | . . . . . . . . 1 . . . Kinetic . | . . . . . . . . . . . . Secondary . | . . . . . . . . . . . . Self-Inflicted Damage 1199 | . 88 30 . . 104 287 237 263 74 22 94 Shots 46 | . 2 1 . . 4 9 13 5 5 4 3 Rammed 16 | . 1 . . . . 1 2 12 . . . Targets Rammed 18 | . 1 . . . . 1 3 13 . . . Kicked . | . . . . . . . . . . . . Crushed 2 | . . . . . . . 1 1 . . . Highest Temperature 483 | . 45 191 . 76 227 120 123 483 181 244 112 Average Temperature 78 | . 17 84 . 25 80 38 30 169 76 110 46 Received Heat Transfer 1349 | . 123 75 . 9 189 306 135 99 267 27 119 Effects 8 | . . . . . 2 . . 6 . . . Shutdowns 3 | . . . . . . . . 3 . . . Energy Bleed 1 | . . . . . . . . 1 . . . Interference 2 | . . . . . 2 . . . . . . Short Circuit 1 | . . . . . . . . 1 . . . Damage (minor) 1 | . . . . . . . . 1 . . . Siege Activations . | . . . . . . . . . . . . Robots Corrupted 6 | . . . . . . . . 1 1 3 1 Combat Hostiles 4 | . . . . . . . . . 1 3 . Parts Fried 11 | . . . . . . . . 1 . 9 1 Impact Corruptions . | . . . . . . . . . . . . Robots Melted . | . . . . . . . . . . . . Combat Hostiles . | . . . . . . . . . . . . Parts Melted . | . . . . . . . . . . . . Heat Transferred 1112 | . 100 124 . 37 259 592 . . . . . Parts Sabotaged . | . . . . . . . . . . . . Parts Stolen . | . . . . . . . . . . . . Parts Stripped . | . . . . . . . . . . . . Power Chain Reactions 1 | . 1 . . . . . . . . . . Missiles Intercepted . | . . . . . . . . . . . . Alert | -11 -10 -10 -10 -9 -8 -8 -7 -6 -6 -6 -6 ------- Run | Scr Mat Min Exi Min Mat Sto Fac Fac Low Low Zio Peak Influence 927 | . 206 70 . 58 328 927 528 272 . . . Initial 421 | . . . . . . 138 421 251 . . . Average 162 | . 65 66 . 47 63 341 358 71 . . . Maximum Alert Level 3 | . 1 . . . 1 3 2 1 . . . Low Security (%) 69 | 100 95 100 . 100 81 46 7 89 . . . Level 1 15 | . 4 . . . 18 11 46 10 . . . Level 2 12 | . . . . . . 25 46 . . . . Level 3 2 | . . . . . . 16 . . . . . Level 4 . | . . . . . . . . . . . . Level 5 . | . . . . . . . . . . . . High Security . | . . . . . . . . . . . . Max Security . | . . . . . . . . . . . . Squads Dispatched 26 | . 2 . . . 4 4 8 8 . . . Investigation 4 | . 1 . . . 1 . 1 1 . . . Extermination 6 | . . . . . . . 2 4 . . . Reinforcement 9 | . 1 . . . 3 2 1 2 . . . Assault 3 | . . . . . . 2 1 . . . . Garrison 4 | . . . . . . . 3 1 . . . Intercept . | . . . . . . . . . . . . Construction Impeded 4 | . . . . . 1 . 1 2 . . . Haulers Reinforced . | . . . . . . . . . . . . Stealth | -11 -10 -10 -10 -9 -8 -8 -7 -6 -6 -6 -6 --------- Run | Scr Mat Min Exi Min Mat Sto Fac Fac Low Low Zio Distress Signals 9 | . 1 . . . . 5 . 3 . . . Communications Jammed . | . . . . . . . . . . . . Distress Signals . | . . . . . . . . . . . . Times Spotted 179 | . 18 2 . 2 15 46 17 30 18 7 24 Peak Tracking Total 8 | . 4 2 . 2 3 7 4 4 4 4 8 Tactical Retreats 13 | . . . . . . 5 . 1 5 . 2 Traps | -11 -10 -10 -10 -9 -8 -8 -7 -6 -6 -6 -6 ------- Run | Scr Mat Min Exi Min Mat Sto Fac Fac Low Low Zio Traps Triggered 10 | . . . . . 2 . 3 5 . . . Indirectly . | . . . . . . . . . . . . Trap Hack Attempts . | . . . . . . . . . . . . Triggered . | . . . . . . . . . . . . Disarmed 9 | . 9 . . . . . . . . . . Reprogrammed . | . . . . . . . . . . . . Reused . | . . . . . . . . . . . . Traps Extracted . | . . . . . . . . . . . . Installed . | . . . . . . . . . . . . Triggered . | . . . . . . . . . . . . Machines | -11 -10 -10 -10 -9 -8 -8 -7 -6 -6 -6 -6 ---------- Run | Scr Mat Min Exi Min Mat Sto Fac Fac Low Low Zio Machines Disabled 24 | . 3 2 . . 1 8 7 . . . 3 Max in Single Turn 3 | . 2 1 . . 1 1 1 . . . 3 Garrison Access 2 | . . . . . . 1 . 1 . . . Machines Sabotaged . | . . . . . . . . . . . . Garrisons Compromised . | . . . . . . . . . . . . Overloaded Fab Kills . | . . . . . . . . . . . . Fab Network Shutdowns . | . . . . . . . . . . . . Hacking | -11 -10 -10 -10 -9 -8 -8 -7 -6 -6 -6 -6 --------- Run | Scr Mat Min Exi Min Mat Sto Fac Fac Low Low Zio Machines Accessed 32 | . 6 . . . 2 6 7 7 2 2 . Terminals 19 | . 6 . . . 1 4 5 2 1 . . Fabricators 1 | . . . . . . . . 1 . . . Repair Stations 4 | . . . . . . 1 2 1 . . . Recycling Units 1 | . . . . . . . . 1 . . . Scanalyzers 1 | . . . . . 1 . . . . . . Garrison Access 3 | . . . . . . 1 . 2 . . . Total Hacks 69 | . 13 . . . 6 13 18 15 2 2 . Successful 34 | . 9 . . . 4 7 3 7 2 2 . Failed 35 | . 4 . . . 2 6 15 8 . . . Catastrophic 5 | . . . . . 1 1 2 1 . . . Database Lockouts . | . . . . . . . . . . . . Manual 19 | . 4 . 1 . . 4 8 2 . . . Terminals 46 | . 13 . . . 4 10 13 5 1 . . Fabricators 3 | . . . . . . . . 3 . . . Repair Stations 9 | . . . . . . 2 5 2 . . . Recycling Units 2 | . . . . . . . . 2 . . . Scanalyzers 2 | . . . . . 2 . . . . . . Garrison Access 4 | . . . . . . 1 . 3 . . . Terminal Hacks 24 | . 9 . . . 2 4 1 4 2 2 . Record 2 | . . . . . . . . . 1 1 . Prototype ID Bank 1 | . . . . . . . 1 . . . . Open Door 5 | . . . . . . 3 . . 1 1 . Branch Access Points 1 | . 1 . . . . . . . . . . Terminal Index 1 | . . . . . 1 . . . . . . Alert Level 3 | . 1 . . . . . . 2 . . . Disarm Traps 2 | . 2 . . . . . . . . . . Dispatch Records 2 | . 1 . . . . . . 1 . . . Recall Investigation 1 | . . . . . 1 . . . . . . Hauler Manifests 2 | . 2 . . . . . . . . . . Zone Layout 4 | . 2 . . . . 1 . 1 . . . Fabricator Hacks . | . . . . . . . . . . . . Repair Station Hacks 5 | . . . . . . 2 2 1 . . . Scan Component 3 | . . . . . . 1 1 1 . . . Repair 2 | . . . . . . 1 1 . . . . Recycling Unit Hacks 1 | . . . . . . . . 1 . . . Retrieve Matter 1 | . . . . . . . . 1 . . . Scanalyzer 2 | . . . . . 2 . . . . . . Insert Component 1 | . . . . . 1 . . . . . . Analyze 1 | . . . . . 1 . . . . . . Garrison Access Hacks 2 | . . . . . . 1 . 1 . . . Seal Access 2 | . . . . . . 1 . 1 . . . Unauthorized Hacks . | . . . . . . . . . . . . Terminals . | . . . . . . . . . . . . Fabricators . | . . . . . . . . . . . . Repair Stations . | . . . . . . . . . . . . Recycling Units . | . . . . . . . . . . . . Scanalyzers . | . . . . . . . . . . . . Garrison Access . | . . . . . . . . . . . . Data Cores Recovered . | . . . . . . . . . . . . Used . | . . . . . . . . . . . . Hacking Detections 24 | . 5 . . . 1 4 7 7 . . . Full Trace Events 3 | . 1 . . . 1 . . 1 . . . Feedback Events 1 | . . . . . 1 . . . . . . Corruption 1 | . . . . . 1 . . . . . . Feedback Blocked . | . . . . . . . . . . . . Robot Schematics Acquired . | . . . . . . . . . . . . Robots Built . | . . . . . . . . . . . . Matter . | . . . . . . . . . . . . Time . | . . . . . . . . . . . . Total Robot Build Rating . | . . . . . . . . . . . . Part Schematics Acquired 1 | . . . . . 1 . . . . . . Parts Built . | . . . . . . . . . . . . Matter . | . . . . . . . . . . . . Time . | . . . . . . . . . . . . Total Part Build Rating . | . . . . . . . . . . . . Parts Repaired 2 | . . . . . . 1 1 . . . . Time 48 | . . . . . . 32 16 . . . . Parts Recycled . | . . . . . . . . . . . . Recycled Matter . | . . . . . . . . . . . . Retrieved Matter . | . . . . . . . . . . . . Retrieved Components . | . . . . . . . . . . . . Parts Scanalyzed 1 | . . . . . 1 . . . . . . Part Schematics Acquired 1 | . . . . . 1 . . . . . . Parts Damaged . | . . . . . . . . . . . . Bothacking | -11 -10 -10 -10 -9 -8 -8 -7 -6 -6 -6 -6 ------------ Run | Scr Mat Min Exi Min Mat Sto Fac Fac Low Low Zio Used RIF Installer . | . . . . . . . . . . . . Robots Hacked . | . . . . . . . . . . . . Non-combat . | . . . . . . . . . . . . Combat . | . . . . . . . . . . . . Robot Hacks Applied . | . . . . . . . . . . . . Relay Couplers Released . | . . . . . . . . . . . . Robots Rewired . | . . . . . . . . . . . . Allies Hacked . | . . . . . . . . . . . . Hacks Repelled . | . . . . . . . . . . . . Allies | -11 -10 -10 -10 -9 -8 -8 -7 -6 -6 -6 -6 -------- Run | Scr Mat Min Exi Min Mat Sto Fac Fac Low Low Zio Total Allies 5 | . . . . 3 . 2 . . . . . Largest Group 3 | . . . . 3 . 2 . . . . . Highest-Rated Group 62 | . . . . 40 . 62 . . . . . Highest-Rated Ally 31 | . . . . 16 . 31 . . . . . Total Orders . | . . . . . . . . . . . . Ally Attacks 20 | . . . . 8 . 12 . . . . . Total Damage 308 | . . . . 101 . 207 . . . . . Kills 5 | . . . . 2 . 3 . . . . . Allies Corrupted . | . . . . . . . . . . . . Allies Melted . | . . . . . . . . . . . . Intel | -11 -10 -10 -10 -9 -8 -8 -7 -6 -6 -6 -6 ------- Run | Scr Mat Min Exi Min Mat Sto Fac Fac Low Low Zio Robot Analysis Total . | . . . . . . . . . . . . Derelict Logs Recovered 4 | . . . . 1 . . . . 3 . . Drone Launches 10 | . . . . . . 8 . 2 . . . Drone Recoveries 2 | . . . . . . 2 . . . . . Exploration | -11 -10 -10 -10 -9 -8 -8 -7 -6 -6 -6 -6 ------------- Run | Scr Mat Min Exi Min Mat Sto Fac Fac Low Low Zio Turns Passed 15805 | 74 1557 239 704 440 768 1698 1810 3785 2333 1293 1104 Spaces Moved 8006 | 45 850 139 425 216 336 655 932 2004 1318 664 422 Core 14 | 10 . . . . . . . . . . 4 Treads 7992 | 35 850 139 425 216 336 655 932 2004 1318 664 418 Legs . | . . . . . . . . . . . . Wheels . | . . . . . . . . . . . . Hover . | . . . . . . . . . . . . Flight . | . . . . . . . . . . . . Fastest Speed 50 | 50 160 160 160 180 180 160 145 145 162 185 205 Average Speed 173 | 135 160 160 161 183 180 179 173 164 170 187 230 Slowest Speed 1650 | 160 160 160 180 200 180 180 200 220 185 205 1650 Overloaded Moves . | . . . . . . . . . . . . Propulsion Burnouts . | . . . . . . . . . . . . Robots Hopped . | . . . . . . . . . . . . Cave-ins Triggered . | . . . . . . . . . . . . Time Travels 1 | . . . . . 1 . . . . . . Exploration Rate (%) 54 | 4 95 28 88 51 27 59 24 53 97 70 52 Regions Visited 11 Branch Regions 7 Pre-discovered Areas 1 | . . . . 1 . . . . . . . Known Exits Taken 2 | . 1 . . . . . . . . 1 . Unknown Exits Taken 9 | 1 . 1 1 1 1 1 1 1 1 . . Scrap Searched 5 | . . . . 1 . . . . 3 1 . Spaces Dug 5 | . . . . . . . . 5 . . . Terrain Destroyed 826 | . 33 7 . . 136 234 187 105 92 14 18 Melee 5 | . . . . . . . . 5 . . . Projectile . | . . . . . . . . . . . . AOE 821 | . 33 7 . . 136 234 187 100 92 14 18 Terrain Rammed . | . . . . . . . . . . . . Walls Destroyed . | . . . . . . . . . . . . Machines Disabled . | . . . . . . . . . . . . Actions | -11 -10 -10 -10 -9 -8 -8 -7 -6 -6 -6 -6 --------- Run | Scr Mat Min Exi Min Mat Sto Fac Fac Low Low Zio Total 9452 | 58 968 145 444 250 451 1103 1092 2387 1372 692 490 Wait 800 | . 20 . . 25 64 359 97 224 2 . 9 Move 7995 | 44 849 138 424 215 335 654 931 2003 1317 663 422 Hop . | . . . . . . . . . . . . Pick Up 161 | 8 28 . 15 1 14 18 16 40 12 4 5 Fast Attach . | . . . . . . . . . . . . Attach 69 | 6 3 1 1 . 5 6 12 23 7 2 3 Detach 1 | . . . . . . . . 1 . . . Swap 28 | . 10 . . 1 4 4 4 2 2 1 . Drop 49 | . 12 . 4 . . 14 9 1 3 5 1 Fire 251 | . 45 6 . 8 29 47 20 37 20 17 22 Melee 79 | . . . . . . . . 43 8 . 28 Ram . | . . . . . . . . . . . . Kick . | . . . . . . . . . . . . Crush 18 | . 1 . . . . 1 3 13 . . . Escape Stasis . | . . . . . . . . . . . . Rewire 1 | . . . . . . . . . 1 . . Trap . | . . . . . . . . . . . . Miscellaneous . | . . . . . . . . . . . . Route ------- -11/Scrapyard -10/Materials (discovered 5 exits: [*Mat x3] / *Min x2) -10/Mines (discovered 2 exits: [*Mat] / *Exi) -10/Exiles -9/Mines -8/Materials -8/Storage -7/Factory -6/Factory (discovered 3 exits: [*Fac] / *Low x2) -6/Lower Caves -6/Lower Caves -6/Zion History --------- Turn | Location | Event 29 | -11/Scrapyard | Discovered new exit (range 16) 75 | -11/Scrapyard | Entered Materials 301 | -10/Materials | Build established: Mutant 427 | -10/Materials | Discovered new exit (range 11) 583 | -10/Materials | Discovered new exit (range 15) 665 | -10/Materials | Identified exit to Mines 1163 | -10/Materials | Discovered new exit (range 16) 1451 | -10/Materials | Discovered new exit (range 12) 1632 | -10/Materials | Entered Mines 1642 | -10/Mines | Met a Derelict bent on vengeance 1714 | -10/Mines | Discovered new exit (range 12) 1864 | -10/Mines | Deemed a non-threat by the Exiles lab entrance 1864 | -10/Mines | Discovered new exit (range 5) 1871 | -10/Mines | Entered Exiles 1913 | -10/Exiles | Met 8R-AWN 1940 | -10/Exiles | Met EX-HEX 1985 | -10/Exiles | Met EX-BIN 2004 | -10/Exiles | Aligned with FarCom system 2006 | -10/Exiles | Given EX-Vault access code 2044 | -10/Exiles | Opened EX-Vault 2055 | -10/Exiles | Found Prototype Device 2090 | -10/Exiles | Warned to stay clear of 0b10 Research branches 2133 | -10/Exiles | Met EX-DEC 2185 | -10/Exiles | Visited The Gauntlet 2552 | -10/Exiles | Discovered new exit (range 14) 2575 | -10/Exiles | Left Exiles lab with Chronowheel 2575 | -10/Exiles | Entered Mines 2583 | -9/Mines | Assisted by bots powering up and referring to "LRC-V3" 2736 | -9/Mines | Learned location of Recycling (-8) 2749 | -9/Mines | Discovered new exit (range 5) 2801 | -9/Mines | Build established: Hauler-Mutant 2900 | -9/Mines | Excavation squad dispatched 2900 | -9/Mines | A large section of the Mines collapsed 3015 | -9/Mines | Entered Materials 3015 | -8/Materials | Evolved 4 slots: Propulsion x2, Utility x2 3017 | -8/Materials | Identified Chronowheel 3017 | -8/Materials | Activated Chronowheel 3017 | -8/Materials | Spacetime reconverged on an earlier point 3708 | -8/Materials | Discovered new exit (range 15) 3783 | -8/Materials | Entered Storage 4597 | -8/Storage | Destroyed 7 combat bots 4715 | -8/Storage | Repaired Imp. Treads 5001 | -8/Storage | Met a pair of Derelict thieves 5097 | -8/Storage | Destroyed 7 combat bots 5474 | -8/Storage | Discovered new exit (range 5) 5481 | -8/Storage | Entered Factory 5481 | -7/Factory | Evolved 2 slots: Power x1, Utility x1 5806 | -7/Factory | Repaired Med. Armor Plating 6948 | -7/Factory | Garrison activated, responded to threat 7081 | -7/Factory | First assault squad dispatched 7286 | -7/Factory | Discovered new exit (range 4) 7291 | -7/Factory | Entered another Factory area 7291 | -6/Factory | Evolved 2 slots: Propulsion x1, Utility x1 7506 | -6/Factory | Build established: Mutant 8009 | -6/Factory | Garrison activated, responded to threat 8040 | -6/Factory | Lost 4 parts (2p1n1u) 8680 | -6/Factory | Discovered new exit (range 15) 9596 | -6/Factory | Lost 6 parts (2p3n1w) 9795 | -6/Factory | Discovered new exit (range 8) 10029 | -6/Factory | Discovered new exit (range 5) 10257 | -6/Factory | Core integrity fell below 50% 10601 | -6/Factory | Build established: Hauler-Mutant 10968 | -6/Factory | System corruption reached 10% 11076 | -6/Factory | Entered Lower Caves 11278 | -6/Lower Caves | Learned 8 Factory zone layouts 11925 | -6/Lower Caves | Learned Factory emergency access door positions 13312 | -6/Lower Caves | Discovered new exit (range 13) 13350 | -6/Lower Caves | Learned location of 1 exit from Lower Caves 13379 | -6/Lower Caves | Spotted B-75 Beast 13409 | -6/Lower Caves | Entered another Lower Caves area 13410 | -6/Lower Caves | Identified exit to Zion 13425 | -6/Lower Caves | Encountered a Warlord checkpoint 14545 | -6/Lower Caves | Lost 3 parts (2n1u) 14702 | -6/Lower Caves | Entered Zion 14972 | -6/Zion | System corruption cleaned by Quarantine Array 15223 | -6/Zion | Learned Factory emergency access door positions 15344 | -6/Zion | Rebuked by Imprinter 15377 | -6/Zion | Attempted to imprint without authorization 15377 | -6/Zion | Attacked by Zionites 15717 | -6/Zion | Lost 4 parts (1p1n1u1w) 15732 | -6/Zion | Core integrity fell below 20% 15806 | -6/Zion | Destroyed by I1-FTL(z) with Makeshift Spear Last Messages --------------- 15752_ DU-113(z) suffers critical hit. 15752_ Unknown Slashing Weapon fried. 15752_ DU-113(z) destroyed. 15752_ HF-29F(z) overheating. 15754_ Acquired 15 matter. 15754_ HF-29F(z) overheating. 15756_ HF-29F(z) heat short circuits Mak. Power Source. 15757_ HF-29F(z) overheating. 15763_ HF-29F(z) heat spikes uncontrollably. 15764_ HF-29F(z) overheating. 15777_ HF-29F(z) heat short circuits Mak. Laser. 15777_ HF-29F(z) pulls a Mak. Hammer out of the Twisted Machinery. 15778_ HF-29F(z) heat damages Mak. Leg, Broken Mak. Power Source, Mak. Salvage Targeting Computer, Mak. Hammer. 15782_ FW-NZ9(z) pulls a Mak. Spear out of the Twisted Machinery. 15783_ HF-29F(z) destroyed. 15785_ System corrupted: Component data lost. 15798_ FW-NZ9(z) system terminally corrupted. 15802_ Proton Cannon destroyed. 15805_ System corrupted: Energy discharge (-30). Map ----- +----------------------------------------------------+ | ?????????????????????????????????????????????????? | | ?????????????????????????????????????????????????? | | ?????????????????????????????????????????????????? | | ?????????????????????????????????????????????????? | | ?????????????????????????????????????????????????? | | ?????????????????????????????????????????????????? | | ?????????????????????????????????????????????????? | | ?????????????????????????????????????????????????? | | ?????????????????????????????????????????????????? | | ?????????????????????????????????????????????????? | | ?????????????????????????????????????????????????? | | ?????????????????????????????????????????????????? | | ?????????????????????????????????????????????????? | | ??????????????????????????????? "????????????????? | | ?????????????????????????????? "????????????????? | | ????????????????????????????" "?""?????????????? | | ???????????????????????#####" " ????? ???????? | | ???????????????????????#""""" " ??? "?????? | | ??????????????????????##""""""" " "??? #?????? | | ?????????????###??????#""" """ " "??? """???? | | ????????????##"#######?""" "" " """? """???? | | ????????????#"""""##"###% " """" """"## | | #############""""""""##=%[ " """" "" """ | | """"""""" #""" "!=*%!%* """"" """" "" "" | | """"""""" #"#" *%%%%!z """"#" """" "" " | | " #"" *=/!%@ % """" """" "" $" | | ?"""" ##*%[ """%= / " ""? | | """""" % """""" " ""#? | | """""" [ "#"""" """## | | """""" ""###"""""""" """"# | | """"" ###" ""#?#"""#""""" z """"" | | " #"""= ""#?###"##"#""" ""# | | """"""""" #"""/ "##???######"#" "" "" | | """"""""" #"#" ""#????????##"" """ | | ###########"""= "##????????#""" """ | | ??????######"# "#?????????#"#"" "" | | ?????## ""#### #"#????????##""" """" """" | | ?????# #"#??????####""" """" """ | | ?????# ! #?#?????##"""""" """"" | | ?????# = #?????#"#""""" "#""" | | ?????## / #### #?????"#"" "" ""#"" " | | ??????# #??######?????#"" """##" "" | | ?###### #######???????#"" """##"" "" | | """"" """""???????#"" "#"#""" """ | | ###### ######???????""" """#"" """ | | # " " #???????""" """"" """ | | # " * """ #???????#" """ | | #"""" " " #??????""" """" "" | | #""""" """""#???????"" """"" """""""" | | #""""" """" #???????""" """"#"" | +----------------------------------------------------+ Best States ------------- Heat Dissipation 64 Energy Generation 31 Energy Capacity 510 Matter Stores 300 Matter Capacity 300 Sight Range 16 Terrain Scan Density 10 Armor Coverage 600 Resistance: EM 20 Propulsion Shielding 66 Weapon Shielding 66 Evasion (%) 50 Recoil Reduction 6 Item Schematics ----------------- Missile Launcher | -8/Materials | Scanalyzed Robot Schematics ------------------ None Fabricated ------------ Nothing Alien Tech Used ----------------- None Achievements -------------- Monster Quick And Dirty Challenges ------------ None Game ------ Seed NodeNullLeg Manual? 0 Play Time 01:38:56 Cumulative 51.7 hours Start 2020.11.17 @ 00:15:44 End 2020.11.17 @ 21:12:40 Sessions 5 Manual Loads 0 Difficulty Rogue Special Mode Halloween2020/ForbiddenLore Game No. 66 Rogue 50 Adventurer 15 Explorer 1 Win Type - Total 0 Types 0/0/0/0/0/0/0/0/0 Lore% 24 Gallery% 38 Achievement% 34 Wizard Run 0 Options --------- ASCII 0 Keyboard 0 Movement Numpad Keybinds 0 Fullscreen 2 Font 18/SmallcapsGlow Map View 76x50 Tactical HUD 1 Map Filters NONE Filters NONE Steam 1 RUN: 6a3da2bb-e46b-4e03-ab95-d4324724e0bd